Cogmind - Beta 14 @@@ ROGUE MODE // 2024.08.11 @ 23:25:25 Player: Gaffe Result: Destroyed by G-47 Trooper with Particle Gun Performance ------------- Evolutions (3) 1500 Regions Visited (4) 800 Robots Destroyed (61) 305 Value Destroyed (1908) 1908 Prototype IDs (0) 0 Alien Tech Used (0) 0 Bonus (44) 44 TOTAL SCORE: 4557 Bonus ------- High Alert Combat Kills 44 Cogmind --------- Core Integrity 0/700 Matter 88/300 Energy 91/100 System Corruption 4% Temperature Cool (9) Movement Core (50) Location -7/Factory Parts ------- > --- POWER (1) -------- (None) > --- PROPULSION (4) --- (None) > --- UTILITY (5) ------ (None) > --- WEAPON (3) ------- Mace > --- INVENTORY (5) ---- Deuterium Engine Light Treads Peak State ------------ > --- POWER ------------ Ion Engine > --- PROPULSION ------- Aluminum Leg Carbon-fiber Leg Carbon-fiber Leg Improved Carbon-fiber Leg > --- UTILITY ---------- Advanced Heat Sink Coolant Injector Small Storage Unit Light Armor Plating > --- WEAPON ----------- Light Assault Rifle Heavy Assault Rifle Heavy Missile Launcher > --- INVENTORY -------- Deuterium Engine Light Treads Aluminum Leg Heavy Assault Rifle Minigun Heavy Missile Launcher [Rating: 31] Favorites ----------- Power Improved Ion Engine Engine Improved Ion Engine Power Core Light Nuclear Core Propulsion Aluminum Leg Leg Aluminum Leg Utility Small Storage Unit Device Advanced Heat Sink Storage Small Storage Unit Processor Improved Targeting Computer Protection Hardened Light Armor Plating Weapon Heavy Assault Rifle Energy Gun EM Pulse Gun Ballistic Gun Heavy Assault Rifle Launcher Heavy Missile Launcher Impact Weapon Mace Build | -11 -10 -9 -8 -7 ------- Run | Yrd Mat Mat Mat Fac Slots Evolved 6 | . . 2 2 2 Power . | . . . . . Propulsion 2 | . . . 1 1 Utility 3 | . . 1 1 1 Weapon 1 | . . 1 . . Parts Attached 57 | 6 2 10 16 23 Power 6 | 1 . 3 2 . Engine 5 | 1 . 2 2 . Core 1 | . . 1 . . Reactor . | . . . . . Propulsion 17 | 2 . 2 5 8 Treads . | . . . . . Leg 17 | 2 . 2 5 8 Wheel . | . . . . . Hover . | . . . . . Flight . | . . . . . Utility 13 | 1 1 3 4 4 Device 3 | . . . 1 2 Storage 1 | 1 . . . . Processor 1 | . . 1 . . Hackware . | . . . . . Protection 8 | . 1 2 3 2 Artifact . | . . . . . Weapon 21 | 2 1 2 5 11 Energy Gun 2 | 1 . . . 1 Energy Cannon . | . . . . . Ballistic Gun 16 | 1 1 2 5 7 Ballistic Cannon . | . . . . . Launcher 2 | . . . . 2 Special Weapon . | . . . . . Impact Weapon 1 | . . . . 1 Slashing Weapon . | . . . . . Piercing Weapon . | . . . . . Special Melee Weapon . | . . . . . Unidentified Prototypes . | . . . . . Parts Lost 34 | . . 1 9 24 Power 1 | . . . . 1 Propulsion 12 | . . 1 3 8 Utility 9 | . . . 3 6 Weapon 12 | . . . 3 9 Highest Loss Streak 23 | . . 1 5 23 To Critical Strikes . | . . . . . Average Slot Usage (%) 83 | . 94 86 84 75 Engine 6 | . 14 1 9 5 Core 2 | . . 9 . . Leg 22 | . 28 22 19 25 Device 3 | . . . 3 10 Storage 9 | . 14 11 9 6 Processor 4 | . . 7 6 . Protection 9 | . 8 11 12 3 Ballistic Gun 22 | . 27 22 25 15 Launcher 1 | . . . . 5 Peak Build Rating 31 | 6 7 13 18 31 Average Rating 15 | 5 6 11 15 23 On Entrance 7 | . 6 7 12 14 Naked Turns . | . . . . . Heaviest Build 27 | 13 16 22 27 26 Greatest Support 58 | 20 20 20 30 58 Greatest Overweight (x) 3 | . . 1 2 3 Average Overweight (x) . | . . . . . Largest Inventory Capacity 8 | 8 8 8 8 8 Average Capacity 7 | 7 8 8 8 7 Most Carried 8 | 2 4 7 8 8 Average Carried 5 | . 1 5 5 5 Final Capacity 8 | 8 8 8 8 5 Final Carried 7 | 1 4 7 6 2 Class Distribution -------------------- 43% | Mutant 25% | Scavenger-Tank 23% | Scavenger-Gunner 6% | Scavenger-Mutant Dominant Class ---------------- Mutant | -10/Materials Mutant | -9/Materials Scavenger-Tank | -8/Materials Scavenger-Gunner | -7/Factory Resources | -11 -10 -9 -8 -7 ----------- Run | Yrd Mat Mat Mat Fac Matter Collected 1497 | 220 67 399 584 227 Remotely 308 | . . . 308 . Salvage Created 2421 | . 67 708 1094 552 Parts 154 | . 4 43 78 29 Haulers Intercepted . | . . . . . Recyclers Shooed . | . . . . . Parts Field Recycled . | . . . . . Retrieved Matter . | . . . . . Parts Self-Destructed . | . . . . . Prevented . | . . . . . Kills | -11 -10 -9 -8 -7 ------- Run | Yrd Mat Mat Mat Fac Combat Hostiles Destroyed 45 | . 2 12 21 10 Guns 42 | . 2 12 21 7 AOE 3 | . . . . 3 Classes Destroyed 10 | . 1 5 2 2 Worker 4 | . . . . 4 Builder 1 | . . . 1 . Tunneler 2 | . . 1 1 . Recycler 4 | . . 1 2 1 Watcher 5 | . . 2 3 . Swarmer 7 | . . . 7 . Grunt 24 | . 2 9 9 4 Brawler 2 | . . 1 . 1 Sentry 8 | . . 2 5 1 Hunter 4 | . . . . 4 Best Kill Streak 8 | . 2 3 5 8 Combat Bots Only 4 | . 2 3 4 4 Max Kills in Single Turn 3 | . 1 1 3 3 Gunslinging 2 | . . . 2 . Exploded 1 | . . . . 1 Melee . | . . . . . Uniques/NPCs Destroyed . | . . . . . Combat | -11 -10 -9 -8 -7 -------- Run | Yrd Mat Mat Mat Fac Hostile Shots Fired 520 | . 9 83 140 288 Missed 155 | . 2 31 43 79 Damage Taken 4890 | . 79 608 1256 2947 Core 977 | . . 112 154 711 Absorbed by Shields . | . . . . . Redirected to Shielding 111 | . . . 50 61 Core Remaining (%) 86 | 100 100 72 72 . Volleys Fired 187 | 1 5 53 79 49 Largest 3 | 2 2 3 3 3 Hottest 108 | 60 40 60 66 108 Shots Fired 437 | 2 10 109 216 100 Gun 433 | 2 10 109 216 96 Cannon . | . . . . . Launcher 4 | . . . . 4 Special . | . . . . . Kinetic 426 | 1 10 109 216 90 Thermal 6 | . . . . 6 Explosive 4 | . . . . 4 Electromagnetic 1 | 1 . . . . Robot Hit Streak 27 | 1 6 27 9 14 Robot Miss Streak 5 | 1 3 5 4 2 Penetration Max . | . . . . . Secondary Targets 10 | . . 2 5 3 Max Gunslinging Chain 2 | . . 1 2 1 Shots Hit Robots 298 | 1 7 80 133 77 Core Hits 138 | . 4 29 64 41 Critical Kills 4 | . . 1 3 . Critical Parts Destroyed . | . . . . . Critical Strikes 5 | . . 2 3 . Destroy 5 | . . 2 3 . Melee Attacks 1 | . . . . 1 Impact 1 | . . . . 1 Slashing . | . . . . . Piercing . | . . . . . Sneak Attacks . | . . . . . Combat Hostiles . | . . . . . Follow-up Attacks . | . . . . . Damage Inflicted 4439 | 20 74 1049 1760 1536 Guns 3796 | 20 74 1049 1756 897 Cannons . | . . . . . Explosions 639 | . . . . 639 Melee . | . . . . . Ramming 4 | . . . 4 . Kinetic 3706 | 7 74 1049 1756 820 Thermal 77 | . . . . 77 Explosive 639 | . . . . 639 Electromagnetic 13 | 13 . . . . Impact . | . . . . . Slashing . | . . . . . Piercing . | . . . . . Highest Corruption 4 | . . . . 4 Average Corruption 3 | . . . . 3 Corruption Purged . | . . . . . Corruption Blocked . | . . . . . Effects 1 | . . . . 1 Matter Fused 1 | . . . . 1 Overload Shots . | . . . . . Overflow Damage . | . . . . . Projectiles . | . . . . . Explosions . | . . . . . Melee . | . . . . . Knockbacks . | . . . . . Impact . | . . . . . Kinetic . | . . . . . Secondary . | . . . . . Self-Inflicted Damage 7 | . . . . 7 Shots 1 | . . . . 1 Rammed . | . . . . . Targets Rammed 2 | . . . 2 . Kicked 2 | . . . 2 . Crushed . | . . . . . Highest Temperature 140 | 20 18 24 140 120 Average Temperature 30 | 15 9 6 34 60 Received Heat Transfer 2097 | . 42 312 504 1239 Siege Activations . | . . . . . Robots Corrupted . | . . . . . Combat Hostiles . | . . . . . Parts Fried . | . . . . . Impact Corruptions . | . . . . . Robots Melted . | . . . . . Combat Hostiles . | . . . . . Parts Melted . | . . . . . Heat Transferred 185 | . . . . 185 Parts Sabotaged . | . . . . . Parts Stolen . | . . . . . Parts Stripped . | . . . . . Power Chain Reactions . | . . . . . Alert | -11 -10 -9 -8 -7 ------- Run | Yrd Mat Mat Mat Fac Peak Influence 480 | . 54 250 480 365 Initial 158 | . . 22 73 158 Average 194 | . 10 133 287 215 Maximum Alert Level 2 | . . 1 2 1 Low Security (%) 56 | 100 100 86 23 51 Level 1 37 | . . 13 59 48 Level 2 6 | . . . 16 . Level 3 . | . . . . . Level 4 . | . . . . . Level 5 . | . . . . . High Security . | . . . . . Max Security . | . . . . . Squads Dispatched 10 | . 1 3 1 5 Investigation 5 | . 1 2 1 1 Extermination . | . . . . . Reinforcement 3 | . . 1 . 2 Assault . | . . . . . Garrison 2 | . . . . 2 Intercept . | . . . . . Searches Triggered . | . . . . . Construction Impeded 1 | . . . . 1 Haulers Reinforced 1 | . . . . 1 Active Scanning Responses . | . . . . . Cargo Convoy Interrupts . | . . . . . Stealth | -11 -10 -9 -8 -7 --------- Run | Yrd Mat Mat Mat Fac Distress Signals 5 | . . 1 4 . Communications Jammed . | . . . . . Distress Signals . | . . . . . Times Spotted 83 | . 3 20 36 24 Peak Tracking Total 10 | . 3 6 6 10 Tactical Retreats 2 | . . . 1 1 Traps | -11 -10 -9 -8 -7 ------- Run | Yrd Mat Mat Mat Fac Traps Triggered 3 | . 1 1 1 . Indirectly . | . . . . . Trap Hack Attempts . | . . . . . Triggered . | . . . . . Disarmed . | . . . . . Reprogrammed . | . . . . . Reused . | . . . . . Traps Extracted . | . . . . . Installed . | . . . . . Triggered . | . . . . . Machines | -11 -10 -9 -8 -7 ---------- Run | Yrd Mat Mat Mat Fac Machines Disabled 1 | . . . 1 . Max in Single Turn 1 | . . . 1 . Machines Repaired . | . . . . . Machines Dismantled . | . . . . . Machines Sabotaged . | . . . . . Overloaded Fab Kills . | . . . . . Hacking | -11 -10 -9 -8 -7 --------- Run | Yrd Mat Mat Mat Fac Machines Accessed 17 | . 3 4 4 6 Terminals 10 | . 3 2 3 2 Fabricators 1 | . . . . 1 Repair Stations 2 | . . . . 2 Recycling Units 1 | . . 1 . . Scanalyzers 3 | . . 1 1 1 Garrison Access . | . . . . . Total Hacks 39 | . 7 10 11 11 Successful 25 | . 3 6 8 8 Failed 14 | . 4 4 3 3 Catastrophic . | . . . . . Database Lockouts . | . . . . . Manual . | . . . . . Terminals 20 | . 7 4 7 2 Fabricators 2 | . . . . 2 Repair Stations 5 | . . . . 5 Recycling Units 2 | . . 2 . . Scanalyzers 10 | . . 4 4 2 Garrison Access . | . . . . . Terminal Hacks 11 | . 3 2 4 2 Record 3 | . . . 2 1 Open DSF 1 | . . . . 1 Scanalyzer Index 1 | . . 1 . . Alert Level 1 | . . 1 . . Locate Traps 2 | . 1 . 1 . Reinforcement Status 1 | . 1 . . . Zone Layout 2 | . 1 . 1 . Fabricator Hacks 2 | . . . . 2 Load Schematic 1 | . . . . 1 Build 1 | . . . . 1 Repair Station Hacks 2 | . . . . 2 Scan Component 2 | . . . . 2 Recycling Unit Hacks 2 | . . 2 . . Process 1 | . . 1 . . Retrieve Components 1 | . . 1 . . Scanalyzer 8 | . . 2 4 2 Insert Component 4 | . . 1 2 1 Analyze 4 | . . 1 2 1 Garrison Access Hacks . | . . . . . Unauthorized Hacks . | . . . . . Terminals . | . . . . . Fabricators . | . . . . . Repair Stations . | . . . . . Recycling Units . | . . . . . Scanalyzers . | . . . . . Garrison Access . | . . . . . Data Cores Recovered . | . . . . . Used . | . . . . . Hacking Detections 12 | . 2 2 3 5 Full Trace Events 2 | . . 1 . 1 Feedback Events . | . . . . . Feedback Blocked . | . . . . . Robot Schematics Acquired . | . . . . . Robots Built . | . . . . . Authchips . | . . . . . Time . | . . . . . Total Robot Build Rating . | . . . . . Part Schematics Acquired 4 | . . 1 2 1 Parts Built 2 | . . . . 2 Authchips . | . . . . . Time 62 | . . . . 62 Total Part Build Rating 4 | . . . . 4 Parts Repaired . | . . . . . Time . | . . . . . Parts Recycled . | . . . . . Recycled Matter 12 | . . 12 . . Retrieved Matter . | . . . . . Retrieved Components . | . . . . . Parts Scanalyzed 4 | . . 1 2 1 Part Schematics Acquired 4 | . . 1 2 1 Parts Damaged . | . . . . . Bothacking | -11 -10 -9 -8 -7 ------------ Run | Yrd Mat Mat Mat Fac Used RIF Installer . | . . . . . Robots Hacked . | . . . . . Non-combat . | . . . . . Combat . | . . . . . Robot Hacks Applied . | . . . . . Relay Couplers Released . | . . . . . Fabnet Peak Effective % . | . . . . . Robots Rewired . | . . . . . Allies Hacked . | . . . . . Hacks Repelled . | . . . . . Allies | -11 -10 -9 -8 -7 -------- Run | Yrd Mat Mat Mat Fac Total Allies . | . . . . . Largest Group . | . . . . . Highest-Rated Group . | . . . . . Highest-Rated Ally . | . . . . . Total Orders . | . . . . . Ally Attacks . | . . . . . Total Damage . | . . . . . Kills . | . . . . . Allies Corrupted . | . . . . . Allies Melted . | . . . . . Intel | -11 -10 -9 -8 -7 ------- Run | Yrd Mat Mat Mat Fac Robot Analysis Total . | . . . . . Derelict Logs Recovered . | . . . . . Drone Launches . | . . . . . Drone Recoveries . | . . . . . Exploration | -11 -10 -9 -8 -7 ------------- Run | Yrd Mat Mat Mat Fac Turns Passed 2229 | 112 153 623 850 491 Spaces Moved 1028 | 46 109 288 345 240 Core 6 | 4 . . . 2 Treads . | . . . . . Legs 1022 | 42 109 288 345 238 Wheels . | . . . . . Hover . | . . . . . Flight . | . . . . . Fastest Speed 50 | 50 120 120 120 50 Average Speed 142 | 113 120 146 165 120 Slowest Speed 260 | 120 120 190 260 200 Overloaded Moves . | . . . . . Propulsion Burnouts . | . . . . . Robots Hopped . | . . . . . Cave-ins Triggered . | . . . . . Exploration Rate (%) 24 | 5 30 34 44 10 Regions Visited 4 Branch Regions . Pre-discovered Areas . | . . . . . Known Exits Taken . | . . . . . Unknown Exits Taken 4 | 1 1 1 1 . Scrap Searched . | . . . . . Spaces Dug . | . . . . . Terrain Destroyed 36 | . . . . 36 Melee . | . . . . . Projectile . | . . . . . AOE 36 | . . . . 36 Terrain Rammed . | . . . . . Walls Destroyed . | . . . . . Machines Disabled . | . . . . . Actions | -11 -10 -9 -8 -7 --------- Run | Yrd Mat Mat Mat Fac Total 1435 | 104 122 385 471 353 Wait 99 | 45 1 20 11 22 Move 1024 | 45 108 287 344 240 Hop . | . . . . . Pick Up 50 | 7 5 9 14 15 Fast Attach . | . . . . . Attach 40 | 6 1 5 11 17 Detach 2 | . . 2 . . Swap 17 | . 1 5 5 6 Drop 13 | . 1 4 5 3 Fire 187 | 1 5 53 79 49 Melee 1 | . . . . 1 Ram . | . . . . . Kick 2 | . . . 2 . Crush . | . . . . . Escape Stasis . | . . . . . Rewire . | . . . . . Trap . | . . . . . Miscellaneous . | . . . . . Route ------- -11/Scrapyard -10/Materials -9/Materials -8/Materials -7/Factory History --------- Turn | Location | Event 4 | -11/Scrapyard | Discovered new exit (range 15) 113 | -11/Scrapyard | Entered Materials 208 | -10/Materials | Discovered new exit (range 14) 266 | -10/Materials | Entered another Materials area 266 | -9/Materials | Evolved 2 slots: Utility x1, Weapon x1 603 | -9/Materials | Build established: Mutant 868 | -9/Materials | Discovered new exit (range 15) 889 | -9/Materials | Entered another Materials area 889 | -8/Materials | Evolved 2 slots: Propulsion x1, Utility x1 1241 | -8/Materials | Lost 5 parts (2n1u2w) 1625 | -8/Materials | Build established: Scavenger-Tank 1733 | -8/Materials | Discovered new exit (range 4) 1739 | -8/Materials | Entered Factory 1739 | -7/Factory | Evolved 2 slots: Propulsion x1, Utility x1 1847 | -7/Factory | Identified exit to DSF 2082 | -7/Factory | Garrison activated, responded to threat 2118 | -7/Factory | Fabricated Hvy. Assault Rifle (x2) 2187 | -7/Factory | Core integrity fell below 50% 2224 | -7/Factory | Core integrity fell below 20% 2230 | -7/Factory | Destroyed by G-47 Trooper with Particle Gun Last Messages --------------- K-01 Serf collects debris. Sml. Storage Unit destroyed. Destroyed Imp. Heat Sink. K-01 Serf collects debris. Acquired Aluminum Leg. Particle Gun destroyed. Critical hit (Burn: +37). K-01 Serf collects debris. C-30 ARC bursts open, deploying its payload. G-50 Soldier unfolds itself. G-47 Trooper unfolds itself. K-01 Serf collects debris. Acquired Mace. K-01 Serf collects debris. G-47 Trooper heat damages Lgt. Nuclear Core, Particle Gun. K-01 Serf collects debris. Aluminum Leg destroyed. Critical hit (Burn: +37). K-01 Serf collects debris. Map ----- +----------------------------------------------------+ | ?????????????????????????????????????????????????? | | ?????????????????????????????????????????????????? | | ?????????????????????????????????????????????????? | | ?????????????????????????????????????????????????? | | ?????????????????????????????????????????????????? | | ?????????????????????????????????????????????????? | | ?????????????????????????????????????????????????? | | ?????????????????????????????????????????????????? | | ?????????????????????????????????????????????????? | | ?????????????????????????????????????????????????? | | ?????????????????????????????????????????????????? | | ?????????????????????????????????????????????????? | | ?????????????????????????????????????????????????? | | ?????????????????????????????????????????????????? | | ?????????????????????????????????????????????????? | | ?????????????????????????????????????????????????? | | ?????????????? ?????????????????????????????? | | ?????????????# ?????????????????????????????? | | ?????????????# ????????????????????????????? | | ?????????????# ?????????????????????????????? | | ?????????????# ##################????????????? | | ??????######## # #????????????? | | ??????# # k #????????????? | | ??????# # ! #????????????? | | ??????# #=%! * #????????????? | | ??????# # *g*l@[* #????????????? | | ??????# # g g=g%k ! #????????????? | | ??????# # kgbg == ! #????????????? | | ####### ###/##############????????????? | | % #####???????????? | | ! * ???????????? | | !! =%! ! !* ##??????????????? | | " F" *%= % #???????????????? | | """" [ % #???????????????? | | ######+############ # ## #???????????????? | | # #??? %# #???????????????? | | + """" #?? # #???????????????? | | #### """" #? /= +???????????????? | | ???# """" # # # ?????????????? | | ???# """" # # #???????????????? | | ???# """" # #? #???????????????? | | ##?# """" # #? #???????????????? | | #?# =# #??? #???????????????? | | #?# # #???? #???????????????? | | #?# * # #?????#???????????????? | | #?# # #?????????????????????? | | #?# # #?????????????????????? | | #?##############? #?????????????????????? | | #?????????????????? ???????????????????????? | | #???????????????????????????????????????????????? | +----------------------------------------------------+ Best States ------------- Heat Dissipation 53 Coolant Potential 65 Energy Generation 14 Energy Capacity 265 Matter Stores 300 Matter Capacity 300 Sight Range 16 Terrain Scan Density 10 Armor Coverage 375 Propulsion Shielding 66 Evasion (%) 55 Targeting Accuracy 6 Item Schematics ----------------- Assault Rifle | -9/Materials | Scanalyzed Hvy. Assault Rifle | -8/Materials | Scanalyzed Deuterium Engine | -8/Materials | Scanalyzed Lgt. Armor Plating | -7/Factory | Scanalyzed Robot Schematics ------------------ None Fabricated ------------ Hvy. Assault Rifle | x2 | -7/Factory Alien Tech Used ----------------- None Achievements -------------- Gunslinger Just What I Needed Use The Force Challenges ------------ None Game ------ Seed ColdVortexCarapace Manual? 0 Play Time 00:44:08 Cumulative 4.3 hours Start 2024.08.11 @ 22:40:48 End 2024.08.11 @ 23:25:25 Sessions 1 Manual Loads 0 Difficulty Rogue Special Mode None Game No. 5 Rogue 5 Adventurer 0 Explorer 0 Win Type - Total 0 Types 0/0/0/0/0/0/0/0/0 Lore% 1 Gallery% 6 Achievement% 8 Wizard Run 0 Options --------- Layout 1 ASCII 0 Keyboard 0 Movement Mouse Keybinds 0 Fullscreen 2 Font 32/SmallcapsGlow Map View 50x35 Zoom Use 0% Tactical HUD 0 Map Filters NONE Filters NONE Steam 1 RUN: 48428e5d-675a-4a0d-8151-5f517b80f4dd